bitfinex/quotes_BTCUSD_20251201
["timestamp","ask_amount","ask_price","bid_price","bid_amount"]
[1764563790385,0.24419688,85997.0,85992.0,0.272142]
[1764563790970,0.01162804,85999.0,85995.0,0.01162858]
[1764563791245,0.01162804,85999.0,85996.0,0.01255175]
[1764563791362,0.01162804,85999.0,85991.0,0.00125657]
[1764563791363,0.06144,85992.0,85991.0,0.00125657]
[1764563791564,0.06144,85992.0,85991.0,0.00025657]
[1764563791780,0.14140164,85992.0,85991.0,0.00025657]
[1764563792028,0.53428463,85992.0,85991.0,0.00025657]
[1764563792630,0.53428463,85992.0,85991.0,0.00125657]
[1764563792803,0.53428463,85992.0,85991.0,0.00025657]
[1764563793493,0.53628463,85992.0,85991.0,0.00025657]
[1764563794608,0.53428463,85992.0,85991.0,0.00025657]
[1764563794981,0.53828463,85992.0,85991.0,0.00025657]
[1764563796355,0.01136,85992.0,85991.0,0.00025657]
[1764563797596,0.01036,85992.0,85991.0,0.0270308]
[1764563797827,0.23257788,85993.0,85991.0,0.0270308]
[1764563798005,0.001,85992.0,85991.0,0.00025657]
[1764563798207,0.004,85992.0,85991.0,0.00025657]
[1764563798669,0.003,85992.0,85991.0,0.00025657]
[1764563800527,0.09351247,85992.0,85991.0,0.00025657]
[1764563800729,0.18988247,85992.0,85991.0,0.00025657]
[1764563801333,0.09451247,85992.0,85991.0,0.00025657]
[1764563802190,0.004,85992.0,85991.0,0.00025657]
[1764563802391,0.004,85992.0,85991.0,0.0258679]
[1764563803741,0.23657977,85992.0,85991.0,0.0258679]
[1764563805154,0.004,85992.0,85991.0,0.0258679]
[1764563805370,0.004,85992.0,85991.0,0.0604279]
[1764563805698,0.004,85992.0,85991.0,0.0258679]
[1764563806111,0.39338977,85992.0,85991.0,0.0258679]
[1764563806355,0.39338977,85992.0,85991.0,0.00025657]
[1764563806922,0.39238977,85992.0,85991.0,0.00025657]
[1764563807141,0.38938977,85992.0,85991.0,0.00025657]
[1764563807345,0.39238977,85992.0,85991.0,0.00025657]
[1764563807635,0.38938977,85992.0,85991.0,0.00025657]
[1764563808027,0.39338977,85992.0,85991.0,0.00025657]
[1764563808787,2.04730676,85992.0,85991.0,0.00025657]
[1764563808975,2.07206108,85992.0,85991.0,0.00025657]
[1764563809546,1.52251408,85992.0,85991.0,0.00025657]
[1764563809770,0.99193808,85992.0,85991.0,0.00025657]
[1764563809937,0.98052708,85992.0,85991.0,0.00025657]
[1764563813097,0.80366708,85992.0,85991.0,0.00025657]
[1764563813653,0.90655808,85992.0,85991.0,0.00025657]
[1764563814601,0.90487853,85992.0,85991.0,0.00025657]
[1764563815188,0.93592136,85992.0,85991.0,0.00025657]
[1764563815640,0.87847775,85992.0,85991.0,0.00025657]
[1764563815998,0.87847775,85992.0,85991.0,0.50025657]
[1764563816918,0.68970261,85992.0,85991.0,0.50025657]
[1764563817118,0.73049261,85992.0,85991.0,0.50025657]
[1764563817708,0.62760161,85992.0,85991.0,0.50025657]
[1764563817908,0.58681161,85992.0,85991.0,0.50025657]
[1764563818738,0.62760161,85992.0,85991.0,0.50025657]
[1764563818936,3.34865561,85992.0,85991.0,0.50025657]
[1764563819147,0.62801161,85992.0,85991.0,0.50025657]
[1764563819379,1.48422461,85992.0,85991.0,0.50025657]
[1764563819562,1.93129161,85992.0,85991.0,0.50025657]
[1764563819727,0.62801161,85992.0,85991.0,0.50025657]
[1764563820049,2.23960661,85992.0,85991.0,0.50025657]
[1764563820281,2.23441661,85992.0,85991.0,0.50025657]
[1764563820519,4.70611361,85992.0,85991.0,0.50025657]
[1764563820667,4.65850361,85992.0,85991.0,0.50025657]
[1764563820837,4.72364861,85992.0,85991.0,0.50025657]
[1764563821032,4.41604307,85992.0,85991.0,0.50025657]
[1764563821329,4.41604307,85992.0,85940.0,0.64363428]
[1764563821330,0.23267989,85955.0,85940.0,0.64363428]
[1764563821492,0.01163331,85960.0,85932.0,0.04954]
[1764563821493,0.24435908,85940.0,85932.0,0.04954]
[1764563821632,0.23409607,85942.0,85932.0,0.04954]
[1764563821633,0.00736,85939.0,85932.0,0.04954]
[1764563821840,0.03413,85950.0,85932.0,0.04954]
[1764563821841,0.53472,85957.0,85941.0,0.04954]
[1764563822058,0.02483186,85956.0,85950.0,0.01163467]
[1764563822365,0.00736,85955.0,85949.0,0.0116348]
[1764563822567,0.00736,85955.0,85950.0,0.24472235]
[1764563822768,0.00736,85955.0,85954.0,0.05072719]
[1764563823689,0.00736,85955.0,85954.0,0.11331719]
[1764563823890,0.00736,85955.0,85954.0,0.00118719]
[1764563824364,0.09978,85955.0,85954.0,0.00118719]
[1764563824496,0.10078,85955.0,85954.0,0.00118719]
[1764563824696,0.00928,85955.0,85954.0,0.00118719]
[1764563825589,0.00928,85955.0,85954.0,0.02810558]
[1764563825800,0.10078,85955.0,85954.0,0.00118719]
[1764563827034,0.319124,85955.0,85954.0,0.00118719]
[1764563827228,0.272714,85955.0,85954.0,0.00118719]
[1764563832037,0.00836,85955.0,85954.0,0.00118719]
[1764563832246,0.24103989,85955.0,85954.0,0.00118719]
[1764563832439,0.001,85955.0,85954.0,0.07844539]
[1764563832646,0.00836,85955.0,85954.0,0.07844539]
[1764563833248,0.00836,85955.0,85954.0,0.01585539]
[1764563833471,0.00836,85955.0,85954.0,0.00118719]
[1764563833472,0.05165,85955.0,85954.0,0.00118719]
[1764563833654,0.17335498,85955.0,85954.0,0.00118719]
[1764563836840,0.001,85955.0,85954.0,0.16150719]
[1764563837075,0.00836,85955.0,85954.0,0.16150719]
[1764563837417,0.00836,85955.0,85954.0,0.06162719]
[1764563837616,0.00836,85955.0,85954.0,0.16150719]
[1764563838074,0.00836,85955.0,85954.0,0.06162719]
[1764563838769,0.28164989,85955.0,85954.0,0.00118719]
[1764563838940,0.37692989,85955.0,85954.0,0.00118719]
[1764563839156,3.53870297,85955.0,85954.0,0.00118719]
[1764563839324,1.70210497,85955.0,85954.0,0.00118719]
[1764563839526,0.40164297,85955.0,85954.0,0.00118719]
[1764563839729,2.99665011,85955.0,85954.0,0.00118719]
[1764563839937,0.78716596,85955.0,85954.0,0.00118719]
[1764563840312,4.33952327,85955.0,85954.0,0.00118719]
[1764563840446,5.78616596,85955.0,85954.0,0.00118719]
[1764563840650,5.78816596,85955.0,85954.0,0.00118719]
[1764563841136,4.19547696,85955.0,85954.0,0.00118719]
[1764563841342,4.19547696,85955.0,85950.0,0.00039478]
[1764563841343,0.55569071,85951.0,85950.0,0.00039478]
[1764563841539,5.73687787,85951.0,85950.0,0.00039478]
[1764563841812,5.83270787,85951.0,85950.0,0.00039478]
[1764563842066,0.83270787,85951.0,85950.0,0.00039478]
[1764563842382,5.83270787,85951.0,85950.0,0.00039478]
[1764563842784,5.81091887,85951.0,85950.0,0.00039478]
[1764563842980,5.63888487,85951.0,85950.0,0.00039478]
[1764563843424,5.83970787,85951.0,85950.0,0.00039478]
[1764563843603,5.61895387,85951.0,85950.0,0.00039478]
[1764563843805,5.08404487,85951.0,85950.0,0.00039478]
[1764563844009,5.83970787,85951.0,85950.0,0.00039478]
[1764563844229,0.83970787,85951.0,85950.0,0.00039478]
[1764563844406,5.84170787,85951.0,85950.0,0.00039478]
[1764563845024,0.84170787,85951.0,85950.0,0.00039478]
[1764563845210,5.84170787,85951.0,85950.0,0.00039478]
[1764563845828,0.84170787,85951.0,85950.0,0.00039478]
[1764563846017,5.84170787,85951.0,85950.0,0.00039478]
[1764563846213,0.84170787,85951.0,85950.0,0.00039478]
[1764563846438,3.88308687,85951.0,85950.0,0.00039478]
[1764563846609,5.84170787,85951.0,85950.0,0.00039478]
[1764563847216,5.84170787,85951.0,85930.0,0.0002]
[1764563847217,0.55574487,85931.0,85930.0,0.0002]
[1764563847416,2.69338194,85931.0,85930.0,0.00031028]
[1764563847682,2.83700694,85931.0,85930.0,0.00031028]
[1764563847836,2.35045294,85931.0,85930.0,0.00031028]
[1764563848156,2.33062994,85931.0,85930.0,0.00031028]
[1764563848375,1.69370794,85931.0,85930.0,0.00031028]
[1764563848502,1.12276094,85931.0,85930.0,0.00031028]
[1764563848704,1.10011794,85931.0,85930.0,0.00031028]
[1764563848907,0.80148094,85931.0,85930.0,0.00031028]
[1764563849214,1.80404394,85931.0,85930.0,0.00031028]
[1764563849427,2.80946994,85931.0,85930.0,0.00031028]
[1764563849628,0.80148094,85931.0,85930.0,0.00031028]
[1764563849830,2.33501794,85931.0,85930.0,0.00031028]
[1764563850039,2.07974194,85931.0,85930.0,0.00031028]
[1764563850273,2.16351894,85931.0,85930.0,0.00031028]
[1764563850474,0.80148094,85931.0,85930.0,0.00031028]
[1764563850718,1.13692494,85931.0,85930.0,0.00031028]
[1764563850888,0.80148094,85931.0,85930.0,0.00031028]
[1764563851294,2.55812194,85931.0,85930.0,0.00031028]
[1764563851470,2.55231794,85931.0,85930.0,0.00031028]
[1764563851811,2.21231794,85931.0,85930.0,0.00031028]
[1764563852016,1.85771294,85931.0,85930.0,0.00031028]
[1764563852238,0.80148094,85931.0,85930.0,0.00031028]
[1764563852437,1.76011794,85931.0,85930.0,0.00031028]
[1764563852647,0.97409794,85931.0,85930.0,0.00031028]
[1764563852785,0.91923294,85931.0,85930.0,0.00082394]
[1764563852990,2.55514294,85931.0,85930.0,0.00082394]
[1764563853418,2.20992494,85931.0,85930.0,0.00082394]
[1764563854051,2.21361794,85931.0,85930.0,0.00082394]
[1764563854252,2.47124694,85931.0,85930.0,0.00082394]
[1764563854571,2.08686894,85931.0,85930.0,0.00082394]
[1764563854734,2.07586894,85931.0,85930.0,0.00082394]
[1764563854929,0.36294094,85931.0,85930.0,0.00082394]
[1764563855334,0.41548795,85931.0,85930.0,0.00082394]
[1764563855546,0.51823395,85931.0,85930.0,0.00082394]
[1764563855772,0.51723395,85931.0,85930.0,0.00082394]
[1764563856179,0.51523395,85931.0,85930.0,0.00082394]
[1764563857123,0.57875694,85931.0,85930.0,0.00082394]
[1764563857325,0.90175694,85931.0,85930.0,0.00082394]
[1764563857533,0.90375694,85931.0,85930.0,0.00082394]
[1764563857741,0.41248795,85931.0,85930.0,0.00082394]
[1764563857884,0.52170595,85931.0,85930.0,0.00082394]
[1764563858093,0.41548795,85931.0,85930.0,0.00082394]
[1764563858341,0.41348795,85931.0,85930.0,0.00082394]
[1764563858558,1.28530595,85931.0,85930.0,0.00082394]
[1764563858782,1.28830595,85931.0,85930.0,0.00082394]
[1764563859010,1.28630595,85931.0,85930.0,0.00082394]
[1764563859227,0.63694995,85931.0,85930.0,0.00082394]
[1764563859649,0.63894995,85931.0,85930.0,0.00082394]
[1764563860950,0.31808795,85931.0,85930.0,0.00082394]
[1764563861146,0.02771308,85931.0,85930.0,0.00082394]
[1764563861370,0.01036,85931.0,85930.0,0.0127959]
[1764563862108,0.19944609,85931.0,85930.0,0.00082394]
[1764563862310,2.50665463,85931.0,85930.0,0.00082394]
[1764563862487,3.21130153,85931.0,85930.0,0.00082394]
[1764563862656,3.08310153,85931.0,85930.0,0.00082394]
[1764563862860,0.01163927,85916.0,85911.0,0.23279697]
[1764563863093,0.03645852,85915.0,85911.0,5.515e-05]
[1764563863304,0.04809793,85915.0,85911.0,0.0116951]
[1764563863521,0.04809793,85915.0,85912.0,0.01163981]
[1764563863723,0.03645852,85915.0,85913.0,0.23279175]
[1764563864259,0.03645852,85915.0,85911.0,0.0587851]
[1764563864260,0.26368326,85942.0,85931.0,0.01163724]
[1764563864468,0.002,85931.0,85930.0,0.6446339]
[1764563864596,0.00936,85931.0,85929.0,0.04709]
[1764563865007,0.00736,85931.0,85929.0,0.04709]
[1764563865205,0.00736,85931.0,85930.0,0.15585]
[1764563866275,0.5,85948.0,85940.0,0.01163602]
[1764563866451,0.01163426,85953.0,85949.0,0.06023]
[1764563866653,0.00736,85952.0,85949.0,0.0718648]
[1764563867416,0.00736,85952.0,85951.0,0.0602]
[1764563867856,0.00936,85952.0,85951.0,0.38358071]
[1764563868310,0.01036,85952.0,85951.0,0.38358071]
[1764563868517,0.003,85952.0,85951.0,0.38358071]
[1764563868718,0.001,85952.0,85951.0,0.38358071]
[1764563868919,0.003,85952.0,85951.0,0.38358071]
[1764563869429,0.002,85952.0,85951.0,0.38358071]
[1764563869783,0.003,85952.0,85951.0,0.38358071]
[1764563870180,0.00736,85961.0,85960.0,0.23266635]
[1764563870384,0.00736,85965.0,85964.0,0.23265553]
[1764563870986,0.00736,85965.0,85964.0,0.38354553]
[1764563871605,0.01163115,85976.0,85964.0,0.38354553]
[1764563871606,0.24423658,85983.0,85976.0,0.01163115]
[1764563871806,0.0001183,85983.0,85978.0,0.01163088]
[1764563872019,0.00736,85982.0,85980.0,0.01163061]
[1764563872453,0.00736,85982.0,85981.0,0.0602]
[1764563872627,0.00736,85982.0,85981.0,0.29280953]
[1764563872861,0.00736,85982.0,85981.0,0.38349953]
[1764563873059,0.00736,85982.0,85981.0,0.29280953]
[1764563873603,0.00836,85982.0,85981.0,0.29280953]
[1764563874021,0.00936,85982.0,85981.0,0.29280953]
[1764563874426,0.003,85982.0,85981.0,0.38349953]
[1764563875541,0.002,85982.0,85981.0,0.70649953]
[1764563876338,0.0001183,85983.0,85982.0,0.323]
[1764563876540,0.00072777,85983.0,85982.0,0.47389]
[1764563876993,0.00072777,85983.0,85982.0,0.15089]
[1764563877486,0.00072777,85983.0,85982.0,0.0602]
[1764563877785,0.00072777,85983.0,85982.0,0.0642]
[1764563877988,0.00072777,85983.0,85979.0,0.01163074]
[1764563878221,0.0117485,85983.0,85979.0,0.01163074]
[1764563878435,0.01214386,85980.0,85973.0,0.04821]
[1764563878661,0.01163115,85976.0,85973.0,0.04821]
[1764563878834,0.24425759,85975.0,85969.0,0.01163209]
[1764563879040,0.01163142,85974.0,85969.0,0.01163209]
[1764563879248,0.01163291,85963.0,85960.0,0.04591]
[1764563879443,0.01163291,85963.0,85954.0,0.05754412]
[1764563879444,0.01163345,85959.0,85954.0,0.05754412]
[1764563879640,0.01163372,85957.0,85954.0,0.04591]
[1764563879872,0.23267447,85957.0,85954.0,0.04591]
[1764563880072,0.23267447,85957.0,85947.0,0.01163507]
[1764563880073,0.01163426,85953.0,85947.0,0.01163507]
[1764563880379,0.01163467,85950.0,85943.0,0.05984561]
[1764563880585,0.0116348,85949.0,85943.0,0.04821]
[1764563880716,0.23270967,85944.0,85943.0,0.04821]
[1764563880920,0.01163521,85946.0,85936.0,0.01163656]
[1764563880921,0.01163534,85945.0,85936.0,0.01163656]
[1764563881219,0.01163602,85940.0,85933.0,0.04821]
[1764563881415,0.24436233,85938.0,85934.0,0.01096383]
[1764563881601,0.01163643,85937.0,85934.0,0.01096383]
[1764563881761,0.23273133,85936.0,85934.0,0.01096383]
[1764563882148,0.00736,85939.0,85935.0,0.0602]
[1764563882396,0.00736,85939.0,85937.0,0.23272862]
[1764563882636,0.001,85938.0,85937.0,0.23272862]
[1764563882845,0.00719695,85948.0,85937.0,0.23272862]
[1764563883042,0.00713695,85948.0,85947.0,0.28091154]
[1764563883253,0.00713695,85948.0,85947.0,0.34111154]
[1764563883438,0.00713695,85948.0,85947.0,0.43180154]
[1764563883804,0.00713695,85948.0,85947.0,0.1991]
[1764563883971,0.002,85948.0,85947.0,0.1991]
[1764563884183,0.002,85948.0,85935.0,0.3346367]
[1764563884184,0.01163534,85945.0,85935.0,0.3346367]
[1764563884448,0.0284,85951.0,85942.0,0.01163575]
[1764563884449,0.00736,85946.0,85942.0,0.01163575]
[1764563884636,0.01899521,85946.0,85943.0,0.02559914]
[1764563884810,0.01163534,85945.0,85940.0,0.01163602]
[1764563885010,0.01163616,85939.0,85933.0,0.04826515]
[1764563885221,0.01163643,85937.0,85933.0,0.04826515]
[1764563885415,0.01163656,85936.0,85933.0,0.04826515]
[1764563885591,0.23273404,85935.0,85933.0,0.04826515]
[1764563885794,0.23273404,85935.0,85933.0,5.515e-05]
[1764563886221,0.00736,85934.0,85933.0,5.515e-05]
[1764563886426,0.00736,85934.0,85933.0,0.04826515]
[1764563886598,0.00736,85934.0,85933.0,0.10846515]
[1764563887003,0.01163561,85943.0,85938.0,0.01163629]
[1764563887235,0.00736,85942.0,85937.0,0.01163643]
[1764563887448,0.01899575,85942.0,85937.0,0.01163643]
[1764563887791,0.01899575,85942.0,85938.0,0.01163629]
[1764563888225,0.24436624,85937.0,85933.0,0.04826515]
[1764563888441,0.00736,85942.0,85933.0,0.05990212]
[1764563888638,0.01163588,85941.0,85936.0,0.01163656]
[1764563889346,0.01163602,85940.0,85936.0,0.01163656]
[1764563889541,0.00736,85942.0,85937.0,0.01163643]
[1764563889744,0.001,85941.0,85938.0,0.23272591]
[1764563890192,0.002,85941.0,85938.0,0.23272591]
[1764563890395,0.001,85941.0,85938.0,0.2443622]
[1764563890527,0.001,85941.0,85940.0,0.2929205]
[1764563890730,0.001,85941.0,85940.0,0.3836105]
[1764563890952,0.00736,85948.0,85940.0,0.3836105]
[1764563890953,0.00736,85948.0,85945.0,0.01163534]
[1764563891135,0.00736,85948.0,85946.0,0.23270425]
[1764563891373,0.00736,85948.0,85945.0,0.24433962]
[1764563891567,0.24431373,85956.0,85945.0,0.24433962]
[1764563891568,0.24429684,85961.0,85953.0,0.01163426]
[1764563891771,0.01163304,85962.0,85953.0,0.01163426]
[1764563892008,0.01163345,85959.0,85947.0,0.05984507]
[1764563892158,0.01163385,85956.0,85948.0,0.23269852]
[1764563892360,0.001,85948.0,85947.0,0.00714806]
[1764563892563,0.001,85948.0,85947.0,0.04821]
[1764563892914,0.00736,85950.0,85947.0,0.05984507]
[1764563893063,0.01899467,85950.0,85945.0,0.24434222]
[1764563893261,0.0116348,85949.0,85945.0,0.24434222]
[1764563893700,0.001,85948.0,85941.0,0.01163588]
[1764563894017,0.01163534,85945.0,85941.0,0.01163588]
[1764563894175,0.01163507,85947.0,85942.0,0.01163575]
[1764563894381,0.001,85948.0,85943.0,0.24434798]
[1764563894563,0.001,85948.0,85947.0,0.10841]
[1764563895244,0.00736,85950.0,85948.0,0.23269884]
[1764563896328,0.00736,85950.0,85949.0,0.15089]
[1764563896542,0.01163237,85967.0,85955.0,0.01163399]
[1764563896706,0.01163196,85970.0,85964.0,0.01163277]
[1764563896885,0.00736,85966.0,85965.0,0.24428546]
[1764563897097,0.00736,85966.0,85965.0,0.33734546]
[1764563897280,0.00025665,85972.0,85971.0,0.23263658]
[1764563897475,0.00025665,85972.0,85971.0,0.29384658]
[1764563897691,0.00025665,85972.0,85971.0,0.38690658]
[1764563897896,0.00025665,85972.0,85971.0,0.06121]
[1764563898149,0.01163196,85970.0,85960.0,0.01163331]
[1764563898358,0.00025665,85972.0,85968.0,0.01163223]
[1764563898646,0.00025665,85972.0,85969.0,0.01163209]
[1764563898858,0.01188834,85972.0,85969.0,0.01163209]
[1764563899056,0.00025665,85972.0,85969.0,0.01163209]
[1764563899210,0.00025665,85972.0,85971.0,0.001]
[1764563899411,0.00025665,85972.0,85971.0,0.23263658]
[1764563899640,0.00025665,85972.0,85970.0,0.23263695]
[1764563899805,0.00125665,85972.0,85970.0,0.23263695]
[1764563900004,0.00025665,85972.0,85969.0,0.24427159]
[1764563900454,0.01288834,85972.0,85969.0,0.24427159]
[1764563900655,0.24552286,85972.0,85970.0,0.02791691]
[1764563900985,0.00736,85971.0,85963.0,0.01163291]
[1764563901157,0.01163196,85970.0,85965.0,0.01163264]
[1764563901386,0.00736,85971.0,85967.0,0.24427734]
[1764563901562,0.00736,85971.0,85970.0,0.29384929]
[1764563902068,0.00736,85971.0,85970.0,0.38690929]
[1764563902271,0.00736,85971.0,85970.0,0.23263929]
[1764563903054,0.01163237,85967.0,85963.0,0.01163291]
[1764563903258,0.00736,85971.0,85962.0,0.05984304]
[1764563903571,0.01163209,85969.0,85966.0,0.0116325]
[1764563904029,0.00736,85971.0,85969.0,0.2326393]
[1764563904232,0.00736,85971.0,85970.0,0.06121]
[1764563904435,0.00736,85971.0,85970.0,0.15427]
[1764563904773,0.00836,85971.0,85970.0,0.15427]
[1764563904963,0.001,85971.0,85970.0,0.15427]
[1764563905179,0.00025665,85972.0,85971.0,0.23263658]
[1764563905377,0.00025665,85972.0,85971.0,0.70990658]
[1764563905778,0.00025665,85972.0,85971.0,0.38690658]
[1764563906630,0.00025665,85972.0,85971.0,0.38990658]
[1764563907853,0.00025665,85972.0,85971.0,0.38690658]
[1764563908361,0.00025665,85972.0,85971.0,0.38790658]
[1764563908563,0.00025665,85972.0,85971.0,0.38690658]
[1764563908765,0.00025665,85972.0,85971.0,0.38990658]
[1764563910127,0.00025665,85972.0,85971.0,0.29684658]
[1764563910340,0.00025665,85972.0,85971.0,0.38990658]
[1764563911109,0.00025665,85972.0,85971.0,0.38690658]
[1764563911321,0.00025665,85972.0,85971.0,0.38990658]
[1764563912138,0.00025665,85972.0,85971.0,0.38690658]
[1764563912480,0.00025665,85972.0,85971.0,0.38790658]
[1764563912749,0.00025665,85972.0,85971.0,0.38690658]
[1764563913158,0.00025665,85972.0,85971.0,0.80590767]
[1764563914107,0.00025665,85972.0,85971.0,0.80290767]
[1764563914310,0.00025665,85972.0,85971.0,0.80390767]
[1764563914571,0.00025665,85972.0,85971.0,0.80790767]
[1764563914721,0.00025665,85972.0,85971.0,0.80390767]
[1764563914920,0.00025665,85972.0,85971.0,0.80290767]
[1764563915145,0.00025665,85972.0,85971.0,0.80890767]
[1764563915351,0.00025665,85972.0,85971.0,0.80390767]
[1764563915712,0.00025665,85972.0,85971.0,0.81090767]
[1764563916473,0.00025665,85972.0,85971.0,0.80990767]
[1764563916649,0.00025665,85972.0,85971.0,0.81090767]
[1764563917168,0.00025665,85972.0,85971.0,0.80290767]
[1764563917574,0.00025665,85972.0,85971.0,0.80890767]
[1764563917996,0.00025665,85972.0,85971.0,0.81026767]
[1764563918342,0.00025665,85972.0,85971.0,0.81626767]
[1764563918546,0.00025665,85972.0,85971.0,0.81126767]
[1764563918763,0.00025665,85972.0,85971.0,0.79629138]
[1764563918966,0.00025665,85972.0,85971.0,0.7874648]
[1764563919184,0.00025665,85972.0,85971.0,0.7751048]
[1764563919699,0.00025665,85972.0,85971.0,0.7741048]
[1764563920109,0.00025665,85972.0,85971.0,0.7751048]
[1764563920468,0.00025665,85972.0,85971.0,0.7801048]
[1764563920655,0.00025665,85972.0,85971.0,0.7741048]
[1764563921067,0.00025665,85972.0,85971.0,0.7811048]
[1764563921731,0.01162601,86014.0,86009.0,0.01162669]
[1764563921939,0.00736,86013.0,86010.0,0.2878156]
[1764563922115,0.00736,86013.0,86011.0,0.23252646]
[1764563922321,0.00039461,86014.0,86013.0,0.23252299]
[1764563922735,0.00039461,86014.0,86010.0,0.2878156]
[1764563922736,0.00039461,86014.0,86010.0,0.01162655]
[1764563922936,0.00039461,86014.0,86011.0,0.01162641]
[1764563923136,0.00039461,86014.0,86011.0,0.2441527]
[1764563923336,0.24416816,86007.0,86004.0,0.04881]
[1764563923657,0.01162736,86004.0,85996.0,0.04881]
[1764563923803,0.01162777,86001.0,85996.0,0.04881]
[1764563924003,0.0116279,86000.0,85996.0,0.06043844]
[1764563924220,0.0116275,86003.0,85997.0,0.09129]
[1764563924421,0.01162709,86006.0,85997.0,0.23256399]
[1764563924642,0.01162709,86006.0,85996.0,0.04881]
[1764563924643,0.23256625,85997.0,85996.0,0.04881]
[1764563924842,0.01162777,86001.0,85996.0,0.001]
[1764563924843,0.01162817,85998.0,85996.0,0.001]
[1764563925022,0.23256625,85997.0,85996.0,0.001]
[1764563925237,0.24419437,85998.0,85996.0,0.0266838]
[1764563925442,0.24419437,85998.0,85996.0,0.001]
[1764563925624,0.01162858,85995.0,85990.0,0.01162925]
[1764563925833,0.24416618,86007.0,85997.0,0.12477831]
[1764563926032,0.23255836,86000.0,85998.0,0.06434]
[1764563926512,0.2441857,86001.0,85998.0,0.06434]
[1764563926679,0.23256006,86000.0,85998.0,0.06434]
[1764563926876,0.01162777,86001.0,85998.0,0.06434]
[1764563927274,0.0116279,86000.0,85997.0,0.06043831]
[1764563927637,0.0116279,86000.0,85998.0,0.001]
[1764563928425,0.23256084,85999.0,85997.0,0.04881]
[1764563928646,0.23256084,85999.0,85998.0,0.02813895]
[1764563928964,0.23256084,85999.0,85998.0,0.001]
[1764563929168,0.01162763,86002.0,85998.0,0.001]
[1764563929310,0.23253078,86011.0,86001.0,0.07657777]
[1764563929311,0.01162709,86006.0,86001.0,0.07657777]
[1764563929512,0.23989768,86008.0,86003.0,0.0116275]
[1764563929714,0.01898682,86008.0,86007.0,0.06495]
[1764563930200,0.00736,86008.0,86007.0,0.06495]
[1764563930734,0.00736,86008.0,86007.0,0.39320921]
[1764563930934,0.00039461,86014.0,86012.0,0.23252569]
[1764563931157,0.00039461,86014.0,86013.0,0.06495]
[1764563931360,0.01162439,86026.0,86021.0,0.24412586]
[1764563931518,0.01174273,86026.0,86025.0,0.11021]
[1764563932080,0.00011834,86026.0,86025.0,0.20593]
[1764563932382,0.00011834,86026.0,86025.0,0.11021]
[1764563932726,0.00011834,86026.0,86025.0,0.20593]
[1764563932927,0.00184958,86026.0,86025.0,0.20593]
[1764563933129,0.00184958,86026.0,86025.0,0.11021]
[1764563933356,0.01162506,86021.0,86016.0,0.05688574]
[1764563933530,0.01162466,86024.0,86020.0,0.0116252]
[1764563934085,0.00011834,86026.0,86025.0,0.23249055]
[1764563934261,0.00011834,86026.0,86025.0,0.39316055]
[1764563935560,0.00011834,86026.0,86025.0,0.16067]
[1764563936534,0.00011834,86026.0,86025.0,0.16367]
[1764563938622,0.00011834,86026.0,86025.0,0.002]
[1764563939501,0.01162466,86024.0,86018.0,0.01162547]
[1764563939699,0.01162493,86022.0,86018.0,0.01162547]
[1764563940126,0.01162466,86024.0,86020.0,0.0116252]
[1764563940323,0.00011834,86026.0,86020.0,0.24412661]
[1764563940510,0.01162452,86025.0,86019.0,0.2325055]
[1764563940657,0.01162479,86023.0,86018.0,0.01162547]
[1764563940859,0.01162506,86021.0,86018.0,0.001]
[1764563941098,0.01162506,86021.0,86016.0,0.05688574]
[1764563941262,0.01162466,86024.0,86019.0,0.24413204]
[1764563941541,0.23250136,86021.0,86017.0,0.1073456]
[1764563941690,0.01174273,86026.0,86019.0,0.01162533]
[1764563941904,0.00011834,86026.0,86025.0,0.06495]
[1764563942468,0.00011834,86026.0,86025.0,0.16067]
[1764563943417,0.00011834,86026.0,86025.0,0.16267]
[1764563943823,0.00011834,86026.0,86025.0,0.48567]
[1764563944820,0.00011834,86026.0,86025.0,0.57867109]
[1764563945396,0.0004,86040.0,86039.0,0.23245272]
[1764563945571,0.0004,86040.0,86039.0,0.34266272]
[1764563945769,0.0004,86040.0,86039.0,0.43838272]
[1764563947128,0.0004,86040.0,86039.0,0.44574272]
[1764563947537,0.0004,86040.0,86039.0,0.44874272]
[1764563947747,0.0004,86040.0,86039.0,0.43938272]
[1764563948168,0.0004,86040.0,86039.0,0.20693]
[1764563948376,0.0004,86040.0,86039.0,0.11121]
[1764563948615,0.23285002,86040.0,86039.0,0.001]
[1764563948825,0.0116229,86037.0,86033.0,0.01162344]
[1764563949056,0.01162277,86038.0,86033.0,0.01162344]
[1764563949259,0.01162277,86038.0,86033.0,0.24408997]
[1764563949260,0.0116229,86037.0,86033.0,0.24408997]
[1764563949453,0.0004,86040.0,86039.0,0.002]
[1764563949653,0.24447252,86040.0,86039.0,0.02693362]
[1764563949952,0.0120225,86040.0,86039.0,0.02693362]
[1764563950323,0.0004,86040.0,86039.0,0.02693362]
[1764563950698,0.00257972,86040.0,86039.0,0.25938634]
[1764563951143,0.00257972,86040.0,86039.0,0.02693362]
[1764563951503,0.00257972,86040.0,86032.0,0.04526]
[1764563951504,0.23246623,86034.0,86032.0,0.04526]
[1764563951854,0.01162317,86035.0,86031.0,0.01162371]
[1764563952179,0.01162277,86038.0,86034.0,0.07657331]
[1764563952383,0.0004,86040.0,86035.0,0.01162317]
[1764563952499,0.0004,86040.0,86039.0,0.06495]
[1764563952702,0.0004,86040.0,86039.0,0.08799094]
[1764563952902,0.0004,86040.0,86039.0,0.18371094]
[1764563954405,0.0004,86040.0,86039.0,0.16540094]
[1764563954629,0.0004,86040.0,86039.0,0.02304094]
[1764563955036,0.0004,86040.0,86039.0,0.02404094]
[1764563955450,0.0004,86040.0,86039.0,0.001]
[1764563955451,0.23371002,86040.0,86039.0,0.001]
[1764563955632,0.23285002,86040.0,86039.0,0.003]
[1764563955834,0.01162277,86038.0,86033.0,0.01162344]
[1764563956032,0.01162277,86038.0,86034.0,0.01162331]
[1764563956436,0.01162371,86031.0,86027.0,0.04526]
[1764563956757,0.01162358,86032.0,86028.0,0.02572212]
[1764563957272,0.01162358,86032.0,86029.0,0.01162398]
[1764563957476,0.01162358,86032.0,86028.0,0.014098]
[1764563957653,0.01162344,86033.0,86028.0,0.01162412]
[1764563957854,0.01162344,86033.0,86029.0,0.01162398]
[1764563958058,0.0120225,86040.0,86032.0,0.07454358]
[1764563958244,0.0004,86040.0,86035.0,0.01162317]
[1764563958582,0.01162263,86039.0,86034.0,0.07454331]
[1764563958793,0.01162277,86038.0,86034.0,0.07454331]
[1764563959000,0.24408102,86037.0,86034.0,0.06292]
[1764563959198,0.24408102,86037.0,86025.0,0.01162452]
[1764563959199,0.01162371,86031.0,86025.0,0.01162452]
[1764563959353,0.01162358,86032.0,86028.0,0.01162412]